[Event "Velká cena Novohradska - A"]
[Site "Nové Hrady, Czech Republic"]
[Date "2024.10.12"]
[Round "1.1"]
[White "Garabik, Marek"]
[Black "Slonek, Richard"]
[Result "1-0"]
[TimeControl "2x20min+10s/tah"]
[WhiteFideId "23717742"]
[BlackFideId "23744553"]
[WhiteElo "1925"]
[BlackElo "1524"]

1. e4 {[%clk 00:20:17]} {[%emt 00:00:03]} e6 {[%clk 00:20:19]} {[%emt
00:00:01]} 2. d4 {[%clk 00:20:26]} {[%emt 00:00:02]} d5 {[%clk 00:20:28]} 3.
exd5 {[%clk 00:20:35]} exd5 {[%clk 00:20:36]} {[%emt 00:00:03]} 4. Nc3 {[%clk
00:20:44]} Nf6 {[%clk 00:20:43]} {[%emt 00:00:04]} 5. Bd3 {[%clk 00:20:52]}
{[%emt 00:00:02]} Nc6 {[%clk 00:20:41]} {[%emt 00:00:13]} 6. Nge2 {[%clk
00:21:00]} {[%emt 00:00:02]} Bd6 {[%clk 00:20:44]} {[%emt 00:00:07]} 7. Bg5
{[%clk 00:21:06]} {[%emt 00:00:03]} Be6 {[%clk 00:20:44]} {[%emt 00:00:10]} 8.
Qd2 {[%clk 00:21:02]} {[%emt 00:00:15]} h6 {[%clk 00:20:49]} {[%emt 00:00:04]}
9. Bh4 {[%clk 00:20:37]} {[%emt 00:00:35]} O-O {[%clk 00:20:38]} {[%emt
00:00:22]} 10. f3 {[%clk 00:19:17]} {[%emt 00:01:29]} Re8 {[%clk 00:20:26]}
{[%emt 00:00:22]} 11. O-O-O {[%clk 00:19:17]} {[%emt 00:00:08]} a5 {[%clk
00:20:27]} {[%emt 00:00:11]} 12. g4 {[%clk 00:18:57]} {[%emt 00:00:31]} g5
{[%clk 00:19:33]} {[%emt 00:01:04]} 13. Bg3 {[%clk 00:19:05]} Bb4 {[%clk
00:18:29]} {[%emt 00:01:15]} 14. h4 {[%clk 00:19:09]} {[%emt 00:00:06]} Bxc3
{[%clk 00:18:14]} {[%emt 00:00:25]} 15. Nxc3 {[%clk 00:18:47]} {[%emt
00:00:33]} Nxd4 {[%clk 00:13:09]} {[%emt 00:05:15]} 16. Bh7+ {[%clk 00:18:54]}
{[%emt 00:00:03]} Nxh7 17. Qxd4 {[%emt 00:00:02]} a4 {[%clk 00:12:11]} {[%emt
00:01:16]} 18. hxg5 {[%clk 00:18:14]} {[%emt 00:00:59]} c5 {[%clk 00:11:37]}
{[%emt 00:00:45]} 19. Qxc5 {[%clk 00:16:45]} {[%emt 00:01:39]} Qxg5+ {[%clk
00:11:15]} {[%emt 00:00:31]} 20. f4 {[%clk 00:16:30]} {[%emt 00:00:26]} Qxg4
{[%clk 00:11:19]} {[%emt 00:00:06]} 21. Rdg1 {[%clk 00:16:34]} {[%emt
00:00:05]} Qf5 {[%clk 00:10:38]} {[%emt 00:00:51]} 22. Qd4 {[%clk 00:14:36]}
{[%emt 00:02:09]} Kf8 {[%clk 00:08:46]} {[%emt 00:02:02]} 23. Bh4 {[%clk
00:14:40]} {[%emt 00:00:06]} f6 {[%clk 00:08:53]} {[%emt 00:00:02]} 24. Bf2
{[%clk 00:13:15]} {[%emt 00:01:35]} Rac8 {[%clk 00:07:34]} {[%emt 00:01:30]} 25.
Rxh6 {[%clk 00:12:22]} {[%emt 00:01:03]} Rc4 {[%clk 00:07:31]} {[%emt
00:00:12]} 26. Qd3 {[%clk 00:10:24]} {[%emt 00:02:09]} Kf7 {[%clk 00:05:25]}
{[%emt 00:02:16]} 27. Rxh7+ {[%clk 00:10:25]} {[%emt 00:00:08]} Kf8 {[%clk
00:05:19]} {[%emt 00:00:16]} 28. Rh8+ {[%clk 00:08:24]} {[%emt 00:02:12]} Kf7
{[%clk 00:04:54]} {[%emt 00:00:35]} 29. Rxe8 {[%clk 00:07:42]} {[%emt
00:00:52]} Kxe8 {[%clk 00:05:01]} {[%emt 00:00:03]} 30. Re1 {[%clk 00:06:38]}
{[%emt 00:01:13]} Kf7 {[%clk 00:04:33]} {[%emt 00:00:38]} 31. Qxf5 {[%clk
00:02:31]} {[%emt 00:04:16]} Bxf5 {[%clk 00:04:39]} {[%emt 00:00:05]} 32. Kd2
{[%clk 00:02:39]} {[%emt 00:00:02]} d4 {[%clk 00:04:19]} {[%emt 00:00:30]} 33.
Ne4 {[%clk 00:02:46]} {[%emt 00:00:04]} Bxe4 {[%clk 00:03:01]} {[%emt
00:01:27]} 34. Rxe4 {[%clk 00:02:55]} Rb4 {[%clk 00:03:10]} {[%emt 00:00:02]}
35. Rxd4 {[%clk 00:02:58]} {[%emt 00:00:08]} Rxb2 {[%clk 00:03:17]} {[%emt
00:00:03]} 36. Rxa4 {[%clk 00:03:07]} b5 {[%clk 00:03:20]} {[%emt 00:00:08]} 37.
Ra7+ {[%clk 00:03:15]} {[%emt 00:00:01]} Kg6 {[%clk 00:03:28]} {[%emt
00:00:02]} 38. Ra6 {[%clk 00:03:15]} {[%emt 00:00:11]} Kf5 {[%clk 00:03:30]}
{[%emt 00:00:07]} 39. Rxf6+ {[%clk 00:03:23]} {[%emt 00:00:03]} Kxf6 {[%emt
00:00:13]} 40. Bd4+ Kf5 {[%clk 00:03:35]} {[%emt 00:00:02]} 41. Bxb2 {[%clk
00:03:41]} Kxf4 42. Kc3 {[%emt 00:00:03]} Ke5 {[%clk 00:03:52]} {[%emt
00:00:02]} 43. Kb4+ {[%clk 00:04:00]} Kd6 {[%clk 00:04:00]} {[%emt 00:00:02]}
44. Kxb5 {[%clk 00:04:09]} Kc7 {[%clk 00:04:09]} 45. a4 {[%clk 00:04:17]}
{[%emt 00:00:04]} Kb7 {[%clk 00:04:18]} 46. c4 Kc7 {[%emt 00:00:02]} 47. a5
{[%clk 00:04:36]} Kb7 {[%clk 00:04:37]} 48. c5 {[%clk 00:04:45]} Kc7 {[%clk
00:04:44]} {[%emt 00:00:04]} 49. a6 {[%clk 00:04:55]} Kb8 {[%clk 00:04:53]} 50.
Be5+ {[%clk 00:05:04]} Ka7 {[%clk 00:05:02]} 51. Kc6 {[%clk 00:05:10]} {[%emt
00:00:07]} Kxa6 {[%clk 00:05:10]} {[%emt 00:00:03]} 52. Bb8 {[%clk 00:05:19]}
Ka5 {[%clk 00:05:13]} {[%emt 00:00:08]} 53. Kb7 {[%clk 00:05:28]} {[%emt
00:00:01]} Kb5 {[%clk 00:05:17]} {[%emt 00:00:06]} 54. c6 {[%clk 00:05:37]} Kc5
{[%clk 00:05:14]} {[%emt 00:00:13]} 55. c7 {[%clk 00:05:46]} Kb5 {[%clk
00:05:21]} {[%emt 00:00:05]} 56. c8=Q {[%clk 00:05:54]} Ka5 {[%clk 00:05:30]}
57. Bc7+ {[%clk 00:05:55]} {[%emt 00:00:09]} Ka4 {[%clk 00:05:38]} {[%emt
00:00:02]} 58. Ba5 {[%clk 00:06:00]} {[%emt 00:00:05]} Kxa5 {[%clk 00:05:39]}
{[%emt 00:00:09]} 59. Qc1 {[%clk 00:05:48]} {[%emt 00:00:22]} Ka4 {[%clk
00:05:47]} {[%emt 00:00:03]} 60. Kc6 {[%clk 00:05:55]} {[%emt 00:00:02]} Ka5
{[%clk 00:05:54]} {[%emt 00:00:02]} 61. Qa3# {[%clk 00:06:04]} {[%emt
00:00:02]} 1-0

[Event "Velká cena Novohradska - A"]
[Site "Nové Hrady, Czech Republic"]
[Date "2024.10.12"]
[Round "1.2"]
[White "Čech, Nicolas"]
[Black "Dudarec, Elias"]
[Result "1-0"]
[TimeControl "2x20min+10s/tah"]
[WhiteFideId "23764228"]
[BlackFideId "23714930"]
[WhiteElo "1626"]
[BlackElo "1588"]

1. e4 {[%clk 00:20:16]} {[%emt 00:00:04]} e6 {[%clk 00:20:13]} {[%emt
00:00:07]} 2. d4 {[%clk 00:20:19]} {[%emt 00:00:07]} d5 {[%clk 00:20:20]}
{[%emt 00:00:02]} 3. Nc3 {[%clk 00:20:27]} {[%emt 00:00:03]} dxe4 {[%clk
00:20:13]} {[%emt 00:00:17]} 4. Nxe4 {[%clk 00:20:33]} {[%emt 00:00:04]} Nd7
{[%clk 00:19:53]} {[%emt 00:00:30]} 5. Nf3 {[%clk 00:20:28]} {[%emt 00:00:16]}
Ngf6 {[%clk 00:19:57]} {[%emt 00:00:06]} 6. Nxf6+ {[%clk 00:19:57]} {[%emt
00:00:41]} Nxf6 {[%clk 00:19:56]} {[%emt 00:00:10]} 7. c4 {[%clk 00:19:26]}
{[%emt 00:00:42]} b6 {[%clk 00:19:48]} {[%emt 00:00:18]} 8. Be2 {[%clk
00:19:16]} {[%emt 00:00:19]} Bb7 {[%clk 00:19:49]} {[%emt 00:00:09]} 9. O-O
{[%clk 00:19:17]} {[%emt 00:00:09]} Be7 {[%clk 00:18:59]} {[%emt 00:01:01]} 10.
Re1 {[%clk 00:18:20]} {[%emt 00:01:07]} O-O {[%clk 00:19:04]} {[%emt 00:00:05]}
11. Be3 {[%clk 00:17:25]} {[%emt 00:01:03]} Rc8 {[%clk 00:18:37]} {[%emt
00:00:38]} 12. h3 {[%clk 00:14:22]} {[%emt 00:03:14]} c5 {[%clk 00:17:23]}
{[%emt 00:01:24]} 13. dxc5 {[%clk 00:12:59]} {[%emt 00:01:32]} Bxc5 {[%clk
00:16:38]} {[%emt 00:00:55]} 14. Bxc5 {[%clk 00:12:39]} {[%emt 00:00:31]} bxc5
{[%clk 00:16:10]} {[%emt 00:00:38]} 15. Qc2 {[%clk 00:11:17]} {[%emt 00:01:31]}
Qc7 {[%clk 00:15:32]} {[%emt 00:00:48]} 16. Rad1 {[%clk 00:10:29]} {[%emt
00:00:59]} Rfd8 {[%clk 00:15:26]} {[%emt 00:00:16]} 17. Rd2 {[%clk 00:08:28]}
{[%emt 00:02:11]} Rxd2 {[%clk 00:14:46]} {[%emt 00:00:49]} 18. Qxd2 {[%clk
00:08:28]} {[%emt 00:00:10]} Rd8 {[%clk 00:14:39]} {[%emt 00:00:17]} 19. Qe3
{[%clk 00:08:36]} {[%emt 00:00:02]} Bxf3 {[%clk 00:12:46]} {[%emt 00:02:03]} 20.
Bxf3 {[%clk 00:08:06]} {[%emt 00:00:41]} Rd4 {[%clk 00:12:51]} {[%emt
00:00:05]} 21. Qc3 {[%clk 00:06:45]} {[%emt 00:01:30]} Qd6 {[%clk 00:11:13]}
{[%emt 00:01:49]} 22. a3 {[%clk 00:03:30]} {[%emt 00:03:24]} e5 {[%clk
00:09:54]} {[%emt 00:01:29]} 23. Qc2 {[%clk 00:03:07]} {[%emt 00:00:34]} e4
{[%clk 00:09:38]} {[%emt 00:00:27]} 24. Be2 {[%clk 00:01:38]} {[%emt 00:01:38]}
h6 {[%clk 00:08:03]} {[%emt 00:01:45]} 25. Rd1 {[%clk 00:01:42]} {[%emt
00:00:06]} Nd7 {[%clk 00:07:29]} {[%emt 00:00:42]} 26. Rxd4 {[%clk 00:01:51]}
{[%emt 00:00:03]} Qxd4 {[%clk 00:07:36]} {[%emt 00:00:03]} 27. Qd1 {[%clk
00:01:35]} {[%emt 00:00:26]} Ne5 {[%clk 00:07:25]} {[%emt 00:00:21]} 28. Qxd4
{[%clk 00:01:28]} {[%emt 00:00:18]} cxd4 {[%clk 00:07:33]} 29. b3 {[%clk
00:01:24]} {[%emt 00:00:13]} d3 {[%clk 00:07:28]} {[%emt 00:00:16]} 30. Bd1
{[%clk 00:01:33]} f5 {[%clk 00:06:41]} {[%emt 00:00:56]} 31. Kf1 {[%clk
00:01:40]} {[%emt 00:00:03]} f4 {[%clk 00:06:35]} {[%emt 00:00:17]} 32. b4
{[%clk 00:01:12]} {[%emt 00:00:38]} Nxc4 {[%clk 00:06:37]} {[%emt 00:00:07]} 33.
Bb3 {[%clk 00:01:20]} {[%emt 00:00:03]} Kf8 {[%clk 00:06:01]} {[%emt 00:00:46]}
34. Bxc4 {[%clk 00:01:28]} {[%emt 00:00:02]} Ke7 {[%clk 00:06:09]} {[%emt
00:00:03]} 35. f3 {[%clk 00:01:21]} {[%emt 00:00:16]} d2 {[%clk 00:06:05]}
{[%emt 00:00:14]} 36. Ke2 {[%clk 00:01:29]} {[%emt 00:00:02]} e3 {[%clk
00:06:14]} 37. Bb3 {[%clk 00:01:30]} {[%emt 00:00:10]} g5 {[%clk 00:05:58]}
{[%emt 00:00:26]} 38. Bd1 {[%clk 00:01:21]} {[%emt 00:00:19]} Kd6 {[%clk
00:05:51]} {[%emt 00:00:16]} 39. Kd3 {[%clk 00:01:29]} {[%emt 00:00:02]} a5
{[%clk 00:04:41]} {[%emt 00:01:21]} 40. b5 {[%clk 00:01:32]} {[%emt 00:00:07]}
Kc5 {[%clk 00:04:39]} {[%emt 00:00:11]} 41. a4 {[%clk 00:01:39]} {[%emt
00:00:04]} h5 {[%clk 00:04:45]} {[%emt 00:00:04]} 42. g3 {[%clk 00:01:40]}
{[%emt 00:00:08]} fxg3 {[%clk 00:04:30]} {[%emt 00:00:25]} 43. Kxe3 {[%clk
00:01:48]} {[%emt 00:00:02]} 1-0

[Event "Velká cena Novohradska - A"]
[Site "Nové Hrady, Czech Republic"]
[Date "2024.10.12"]
[Round "1.3"]
[White "Rendl, Luboš"]
[Black "Hejda, Ondřej"]
[Result "1-0"]
[TimeControl "2x20min+10s/tah"]
[WhiteFideId "23750197"]
[BlackFideId "23713623"]
[WhiteElo "1860"]
[BlackElo "1702"]

1. a3 {[%clk 00:20:14]} {[%emt 00:00:06]} c6 {[%clk 00:20:14]} {[%emt
00:00:07]} 2. c4 {[%clk 00:20:22]} {[%emt 00:00:02]} d5 {[%clk 00:20:21]}
{[%emt 00:00:03]} 3. d4 {[%clk 00:20:05]} {[%emt 00:00:28]} Nf6 {[%clk
00:20:10]} {[%emt 00:00:20]} 4. Nc3 {[%clk 00:20:10]} {[%emt 00:00:04]} Bf5
{[%clk 00:19:46]} {[%emt 00:00:34]} 5. Bg5 {[%clk 00:19:56]} {[%emt 00:00:25]}
Nbd7 {[%clk 00:18:59]} {[%emt 00:00:57]} 6. e3 {[%clk 00:19:57]} {[%emt
00:00:09]} e6 {[%clk 00:18:28]} {[%emt 00:00:42]} 7. Nf3 {[%clk 00:20:04]}
{[%emt 00:00:02]} Be7 {[%clk 00:17:27]} {[%emt 00:01:11]} 8. Bd3 {[%clk
00:20:03]} {[%emt 00:00:11]} Bg6 {[%clk 00:17:29]} {[%emt 00:00:08]} 9. O-O
{[%clk 00:20:01]} {[%emt 00:00:12]} Qc7 {[%clk 00:16:26]} {[%emt 00:01:12]} 10.
cxd5 {[%clk 00:19:31]} {[%emt 00:00:40]} cxd5 {[%clk 00:16:17]} {[%emt
00:00:19]} 11. Rc1 {[%clk 00:19:29]} {[%emt 00:00:12]} Qd8 {[%clk 00:15:36]}
{[%emt 00:00:52]} 12. Nb5 {[%clk 00:19:17]} {[%emt 00:00:22]} O-O {[%clk
00:15:13]} {[%emt 00:00:33]} 13. Bxg6 {[%clk 00:18:58]} {[%emt 00:00:28]} hxg6
{[%clk 00:15:19]} {[%emt 00:00:05]} 14. Bxf6 {[%clk 00:17:38]} {[%emt
00:01:30]} Nxf6 {[%clk 00:15:06]} {[%emt 00:00:23]} 15. Ne5 {[%clk 00:17:39]}
{[%emt 00:00:08]} Qb6 {[%clk 00:14:19]} {[%emt 00:00:57]} 16. Qd3 {[%clk
00:16:47]} {[%emt 00:01:02]} Rac8 {[%clk 00:12:49]} {[%emt 00:01:41]} 17. g4
{[%clk 00:10:59]} {[%emt 00:05:58]} a6 {[%clk 00:11:00]} {[%emt 00:02:00]} 18.
g5 {[%clk 00:08:09]} {[%emt 00:02:59]} Ne4 {[%clk 00:10:12]} {[%emt 00:00:57]}
19. Nd7 {[%clk 00:05:34]} {[%emt 00:02:45]} Qxb5 {[%clk 00:08:38]} {[%emt
00:01:45]} 20. Qxb5 {[%clk 00:05:41]} {[%emt 00:00:03]} axb5 {[%clk 00:08:47]}
{[%emt 00:00:02]} 21. Nxf8 {[%clk 00:05:48]} Rxf8 {[%clk 00:08:48]} {[%emt
00:00:09]} 22. Rc7 {[%clk 00:05:04]} {[%emt 00:00:55]} Bxg5 {[%clk 00:07:53]}
{[%emt 00:01:05]} 23. Rxb7 {[%clk 00:04:47]} {[%emt 00:00:26]} Rc8 {[%clk
00:06:32]} {[%emt 00:01:31]} 24. Rxb5 {[%clk 00:03:02]} {[%emt 00:01:56]} Rc2
{[%clk 00:06:25]} {[%emt 00:00:17]} 25. b4 {[%clk 00:01:33]} {[%emt 00:01:39]}
Bh4 {[%clk 00:06:22]} {[%emt 00:00:13]} 26. Rc5 {[%clk 00:00:44]} {[%emt
00:00:59]} Nxc5 {[%clk 00:06:14]} {[%emt 00:00:18]} 27. dxc5 {[%clk 00:00:51]}
{[%emt 00:00:03]} Kf8 {[%clk 00:05:57]} {[%emt 00:00:27]} 28. a4 {[%clk
00:00:41]} {[%emt 00:00:20]} Rb2 {[%clk 00:05:47]} {[%emt 00:00:20]} 29. b5
{[%clk 00:00:45]} {[%emt 00:00:06]} Be7 {[%clk 00:05:30]} {[%emt 00:00:26]} 30.
Rc1 {[%clk 00:00:40]} {[%emt 00:00:15]} Ke8 {[%clk 00:05:25]} {[%emt 00:00:15]}
31. c6 {[%clk 00:00:37]} {[%emt 00:00:14]} Kd8 {[%clk 00:04:56]} {[%emt
00:00:39]} 32. c7+ {[%clk 00:00:34]} {[%emt 00:00:12]} Kc8 {[%clk 00:04:57]}
{[%emt 00:00:09]} 33. Rc6 {[%clk 00:00:35]} {[%emt 00:00:10]} Bd6 {[%clk
00:04:14]} {[%emt 00:00:52]} 34. Rxd6 {[%clk 00:00:33]} {[%emt 00:00:14]} Kxc7
{[%clk 00:04:22]} {[%emt 00:00:02]} 35. Rc6+ {[%clk 00:00:41]} Kb7 {[%clk
00:04:13]} {[%emt 00:00:18]} 36. Kg2 {[%clk 00:00:37]} {[%emt 00:00:15]} Rb4
{[%clk 00:04:12]} {[%emt 00:00:11]} 37. Ra6 {[%clk 00:00:26]} {[%emt 00:00:21]}
e5 {[%clk 00:03:44]} {[%emt 00:00:38]} 38. Kf3 {[%clk 00:00:20]} {[%emt
00:00:15]} f6 {[%clk 00:03:10]} {[%emt 00:00:44]} 39. Re6 {[%clk 00:00:18]}
{[%emt 00:00:12]} Rxa4 {[%clk 00:02:15]} {[%emt 00:01:12]} 40. Re7+ {[%clk
00:00:27]} {[%emt 00:00:01]} Kb6 {[%clk 00:02:20]} 41. Rxg7 {[%clk 00:00:34]}
Rh4 {[%clk 00:02:13]} {[%emt 00:00:17]} 42. Rxg6 {[%clk 00:00:30]} {[%emt
00:00:15]} Rxh2 {[%clk 00:01:38]} {[%emt 00:00:44]} 43. Rxf6+ {[%clk 00:00:34]}
{[%emt 00:00:06]} Kxb5 {[%clk 00:01:43]} {[%emt 00:00:05]} 44. Rf5 {[%clk
00:00:36]} {[%emt 00:00:09]} Kc4 {[%clk 00:00:42]} {[%emt 00:01:10]} 45. Rxe5
{[%clk 00:00:39]} {[%emt 00:00:07]} Rh4 {[%clk 00:00:36]} {[%emt 00:00:16]} 46.
Kg3 {[%clk 00:00:38]} {[%emt 00:00:11]} Rh6 {[%clk 00:00:26]} {[%emt 00:00:21]}
47. Rf5 {[%clk 00:00:26]} {[%emt 00:00:22]} Rg6+ {[%clk 00:00:22]} {[%emt
00:00:14]} 48. Kf3 {[%clk 00:00:33]} {[%emt 00:00:02]} d4 {[%clk 00:00:26]}
{[%emt 00:00:06]} 49. Rf4 {[%clk 00:00:37]} {[%emt 00:00:06]} Kc5 {[%clk
00:00:20]} {[%emt 00:00:17]} 50. Rxd4 {[%clk 00:00:43]} {[%emt 00:00:04]} Rf6+
{[%clk 00:00:28]} 51. Rf4 {[%clk 00:00:51]} {[%emt 00:00:02]} Re6 {[%clk
00:00:35]} {[%emt 00:00:04]} 52. Rf5+ {[%clk 00:00:44]} {[%emt 00:00:17]} Kd6
{[%clk 00:00:42]} {[%emt 00:00:03]} 53. Kf4 {[%clk 00:00:51]} {[%emt 00:00:03]}
Rh6 {[%clk 00:00:47]} {[%emt 00:00:05]} 54. f3 {[%clk 00:00:36]} {[%emt
00:00:25]} Ke6 {[%clk 00:00:47]} {[%emt 00:00:09]} 55. Ra5 {[%clk 00:00:23]}
{[%emt 00:00:23]} Rh4+ {[%clk 00:00:49]} {[%emt 00:00:08]} 56. Kg5 {[%clk
00:00:32]} Rh3 {[%clk 00:00:54]} {[%emt 00:00:07]} 57. Kg4 {[%clk 00:00:40]}
{[%emt 00:00:02]} Rh7 {[%clk 00:00:56]} {[%emt 00:00:07]} 58. e4 {[%clk
00:00:35]} {[%emt 00:00:16]} Rf7 {[%clk 00:00:58]} {[%emt 00:00:05]} 59. f4
{[%clk 00:00:37]} {[%emt 00:00:10]} Kd6 {[%clk 00:01:01]} {[%emt 00:00:08]} 60.
Ra6+ {[%clk 00:00:22]} {[%emt 00:00:25]} Kc5 {[%clk 00:01:06]} {[%emt
00:00:05]} 61. Kg5 {[%clk 00:00:29]} {[%emt 00:00:03]} Kd4 {[%clk 00:01:12]}
{[%emt 00:00:04]} 62. e5 {[%clk 00:00:36]} {[%emt 00:00:04]} Ke4 {[%clk
00:01:15]} {[%emt 00:00:06]} 63. Rf6 {[%clk 00:00:26]} {[%emt 00:00:19]} Re7
{[%clk 00:00:58]} {[%emt 00:00:28]} 64. Kg6 {[%clk 00:00:23]} {[%emt 00:00:13]}
Kd5 {[%clk 00:00:49]} {[%emt 00:00:19]} 65. e6 {[%clk 00:00:15]} {[%emt
00:00:18]} Ke4 {[%clk 00:00:35]} {[%emt 00:00:24]} 66. f5 {[%clk 00:00:21]}
{[%emt 00:00:04]} Ke5 {[%clk 00:00:43]} 67. Rf7 {[%clk 00:00:29]} {[%emt
00:00:03]} Re8 {[%clk 00:00:46]} {[%emt 00:00:07]} 68. e7 {[%clk 00:00:16]}
{[%emt 00:00:23]} Kd6 {[%clk 00:00:44]} {[%emt 00:00:11]} 69. f6 {[%clk
00:00:20]} {[%emt 00:00:06]} Ke6 {[%clk 00:00:51]} {[%emt 00:00:04]} 70. Rf8
{[%clk 00:00:28]} {[%emt 00:00:02]} 1-0

[Event "Velká cena Novohradska - A"]
[Site "Nové Hrady, Czech Republic"]
[Date "2024.10.12"]
[Round "1.4"]
[White "Mountassir, Karim"]
[Black "Gregor, Alexandr"]
[Result "0-1"]
[TimeControl "2x20min+10s/tah"]
[WhiteFideId "23746327"]
[BlackFideId "23735813"]
[WhiteElo "1614"]
[BlackElo "1813"]

1. e4 {[%clk 00:20:19]} c5 {[%clk 00:20:19]} {[%emt 00:00:02]} 2. Nf3 {[%clk
00:20:26]} {[%emt 00:00:02]} d6 {[%clk 00:20:23]} {[%emt 00:00:07]} 3. d4
{[%clk 00:20:34]} {[%emt 00:00:02]} cxd4 {[%clk 00:20:32]} 4. Nxd4 {[%clk
00:20:43]} Nf6 {[%clk 00:20:41]} {[%emt 00:00:03]} 5. Nc3 {[%clk 00:20:51]}
{[%emt 00:00:02]} a6 {[%clk 00:20:50]} 6. a4 {[%clk 00:20:56]} {[%emt
00:00:06]} e6 {[%clk 00:20:42]} {[%emt 00:00:18]} 7. Be2 {[%clk 00:20:46]}
{[%emt 00:00:20]} Be7 {[%clk 00:20:50]} {[%emt 00:00:02]} 8. Be3 {[%clk
00:20:47]} {[%emt 00:00:08]} Qc7 {[%clk 00:20:54]} {[%emt 00:00:06]} 9. Bf3
{[%clk 00:19:57]} {[%emt 00:01:00]} Nc6 {[%clk 00:20:51]} {[%emt 00:00:14]} 10.
O-O {[%clk 00:19:36]} {[%emt 00:00:32]} Bd7 {[%clk 00:20:52]} {[%emt 00:00:08]}
11. Qd2 {[%clk 00:18:26]} {[%emt 00:01:20]} O-O {[%clk 00:20:47]} {[%emt
00:00:15]} 12. Be2 {[%clk 00:17:12]} {[%emt 00:01:23]} Nxd4 {[%clk 00:20:36]}
{[%emt 00:00:22]} 13. Qxd4 {[%clk 00:16:54]} {[%emt 00:00:28]} Bc6 {[%clk
00:20:29]} {[%emt 00:00:17]} 14. f3 {[%clk 00:16:38]} {[%emt 00:00:25]} d5
{[%clk 00:20:29]} {[%emt 00:00:11]} 15. e5 {[%clk 00:16:32]} {[%emt 00:00:16]}
Nd7 {[%clk 00:20:35]} {[%emt 00:00:03]} 16. f4 {[%clk 00:16:19]} {[%emt
00:00:24]} Bc5 {[%clk 00:20:40]} {[%emt 00:00:05]} 17. Qd3 {[%clk 00:16:15]}
{[%emt 00:00:14]} Bxe3+ {[%clk 00:17:38]} {[%emt 00:03:12]} 18. Qxe3 {[%clk
00:16:22]} {[%emt 00:00:02]} Qb6 {[%clk 00:17:47]} {[%emt 00:00:02]} 19. Qxb6
{[%clk 00:15:19]} {[%emt 00:01:12]} Nxb6 {[%clk 00:17:53]} {[%emt 00:00:05]} 20.
a5 {[%clk 00:15:19]} {[%emt 00:00:11]} Nd7 {[%clk 00:10:43]} {[%emt 00:07:19]}
21. Bd3 {[%clk 00:13:30]} {[%emt 00:01:59]} Rfb8 {[%clk 00:09:12]} {[%emt
00:01:41]} 22. Ne2 {[%clk 00:11:26]} {[%emt 00:02:14]} Nc5 {[%clk 00:08:49]}
{[%emt 00:00:33]} 23. b4 {[%clk 00:09:48]} {[%emt 00:01:48]} Nxd3 {[%clk
00:08:55]} {[%emt 00:00:04]} 24. cxd3 {[%clk 00:09:56]} {[%emt 00:00:01]} Bb5
{[%clk 00:08:58]} {[%emt 00:00:08]} 25. Rfd1 {[%clk 00:09:12]} {[%emt
00:00:53]} Rc8 {[%clk 00:07:11]} {[%emt 00:01:58]} 26. Rd2 {[%clk 00:05:40]}
{[%emt 00:03:42]} Rc7 {[%clk 00:06:52]} {[%emt 00:00:28]} 27. Rc1 {[%clk
00:05:44]} {[%emt 00:00:06]} Rxc1+ {[%clk 00:05:18]} {[%emt 00:01:45]} 28. Nxc1
{[%clk 00:05:53]} Rc8 {[%clk 00:05:27]} {[%emt 00:00:02]} 29. Ne2 {[%clk
00:05:56]} {[%emt 00:00:06]} h6 {[%clk 00:04:48]} {[%emt 00:00:48]} 30. Kf2
{[%clk 00:05:46]} {[%emt 00:00:20]} g5 {[%clk 00:04:42]} {[%emt 00:00:16]} 31.
Ke3 {[%clk 00:05:02]} {[%emt 00:00:54]} gxf4+ {[%clk 00:02:44]} {[%emt
00:02:09]} 32. Kxf4 {[%clk 00:04:59]} {[%emt 00:00:12]} Kg7 {[%clk 00:02:51]}
{[%emt 00:00:04]} 33. Ke3 {[%clk 00:03:26]} {[%emt 00:01:44]} Kg6 {[%clk
00:00:41]} {[%emt 00:02:20]} 34. Kd4 {[%clk 00:02:23]} {[%emt 00:01:12]} h5
{[%clk 00:00:22]} {[%emt 00:00:29]} 35. Nc3 {[%clk 00:01:53]} {[%emt 00:00:41]}
f6 {[%clk 00:00:14]} {[%emt 00:00:18]} 36. Nxb5 {[%clk 00:01:25]} {[%emt
00:00:37]} axb5 {[%clk 00:00:20]} {[%emt 00:00:04]} 37. Rb2 {[%clk 00:00:51]}
{[%emt 00:00:50]} Rc1 {[%clk 00:00:17]} {[%emt 00:00:07]} 38. exf6 {[%clk
00:00:28]} {[%emt 00:00:33]} Kxf6 {[%clk 00:00:25]} {[%emt 00:00:02]} 39. Rf2+
{[%clk 00:00:33]} {[%emt 00:00:05]} Ke7 {[%clk 00:00:15]} {[%emt 00:00:20]} 40.
Ke5 {[%clk 00:00:15]} {[%emt 00:00:28]} Rb1 {[%clk 00:00:13]} {[%emt 00:00:12]}
41. Rf4 {[%clk 00:00:19]} {[%emt 00:00:06]} Rb3 {[%clk 00:00:11]} {[%emt
00:00:11]} 42. Rh4 {[%clk 00:00:12]} {[%emt 00:00:17]} Rxd3 {[%clk 00:00:19]}
{[%emt 00:00:03]} 43. Rxh5 {[%clk 00:00:21]} Re3+ {[%clk 00:00:15]} {[%emt
00:00:14]} 44. Kd4 {[%clk 00:00:28]} {[%emt 00:00:03]} Re4+ {[%clk 00:00:22]}
{[%emt 00:00:02]} 45. Kc3 {[%clk 00:00:37]} Rc4+ {[%clk 00:00:21]} {[%emt
00:00:13]} 46. Kb3 {[%clk 00:00:35]} {[%emt 00:00:12]} Kd6 {[%clk 00:00:12]}
{[%emt 00:00:18]} 47. Rh7 {[%clk 00:00:20]} {[%emt 00:00:25]} d4 {[%clk
00:00:13]} {[%emt 00:00:10]} 48. Rh4 {[%clk 00:00:00]} {[%emt 00:00:20]} e5
{[%emt 00:00:14]} 0-1